bitfinex/quotes_BTCUSD_20240717
["timestamp","ask_amount","ask_price","bid_price","bid_amount"]
[1721210958868,1.21685602,65334.0,65333.0,0.8551025]
[1721210959024,1.31685602,65334.0,65333.0,0.1551025]
[1721210959665,1.31685602,65334.0,65333.0,0.1411025]
[1721210959862,1.29185602,65334.0,65333.0,0.1411025]
[1721210960078,1.29185602,65334.0,65333.0,0.1301025]
[1721210960280,1.289256,65334.0,65333.0,0.1301025]
[1721210960440,1.289256,65334.0,65333.0,0.13412425]
[1721210960856,1.289256,65334.0,65333.0,0.13412284]
[1721210961858,1.289256,65334.0,65333.0,0.13412262]
[1721210962239,1.289256,65334.0,65333.0,0.007]
[1721210965886,0.21784,65334.0,65333.0,0.28850439]
[1721210966090,0.21784,65334.0,65333.0,0.33963483]
[1721210967201,0.21784,65334.0,65333.0,0.3396251]
[1721210970161,0.370899,65334.0,65333.0,0.3396251]
[1721210970482,0.983137,65334.0,65333.0,0.18524144]
[1721210970683,0.983137,65334.0,65333.0,0.134111]
[1721210973932,0.983137,65334.0,65333.0,0.13411337]
[1721210977100,0.21784,65334.0,65333.0,0.13411567]
[1721210977321,0.1777,65334.0,65333.0,0.16980724]
[1721210977534,0.330759,65334.0,65333.0,0.16980724]
[1721210977730,0.253059,65334.0,65333.0,0.16980724]
[1721210977994,0.1,65334.0,65333.0,0.16980724]
[1721210978107,1e-08,65336.0,65333.0,0.47724898]
[1721210978313,1e-08,65336.0,65335.0,0.29997479]
[1721210978509,1e-08,65336.0,65335.0,0.6342722]
[1721210978750,1e-08,65336.0,65335.0,1.38011423]
[1721210979359,1e-08,65336.0,65335.0,1.53317123]
[1721210979561,1e-08,65336.0,65335.0,1.64167877]
[1721210980178,1e-08,65336.0,65335.0,1.4847631]
[1721210980377,1e-08,65336.0,65335.0,1.61286039]
[1721210980753,1e-08,65336.0,65335.0,1.62586039]
[1721210980949,1e-08,65336.0,65335.0,1.63986039]
[1721210981680,1e-08,65336.0,65335.0,1.70862586]
[1721210981843,1e-08,65336.0,65335.0,1.63145107]
[1721210982656,1e-08,65336.0,65335.0,1.57198045]
[1721210982813,0.06000001,65336.0,65335.0,1.1638286]
[1721210983830,0.06000001,65336.0,65335.0,1.16383872]
[1721210984271,0.14050001,65336.0,65335.0,1.16383872]
[1721210986208,0.14050001,65336.0,65335.0,1.20970069]
[1721210986425,0.14050001,65336.0,65335.0,1.16383872]
[1721210986849,0.14050001,65336.0,65335.0,1.16383566]
[1721210987458,1e-08,65336.0,65335.0,1.16383566]
[1721210989483,1e-08,65336.0,65335.0,1.20969864]
[1721210990150,1e-08,65336.0,65335.0,1.03673131]
[1721210990349,1e-08,65336.0,65335.0,1.20969719]
[1721210990630,1e-08,65336.0,65335.0,1.00945172]
[1721210990631,0.45916301,65336.0,65335.0,1.00945172]
[1721210990767,0.84797201,65336.0,65335.0,1.00945172]
[1721210990968,1.21438101,65336.0,65335.0,0.85510215]
[1721210991370,1.31438101,65336.0,65335.0,0.85510215]
[1721210991777,1.31438101,65336.0,65335.0,0.84110215]
[1721210992224,1.31438101,65336.0,65335.0,0.84210215]
[1721210992436,1.31438101,65336.0,65335.0,0.14110215]
[1721210992671,1.31438101,65336.0,65335.0,0.12710215]
[1721210992874,1.31438101,65336.0,65335.0,0.12810215]
[1721210993283,1.31438101,65336.0,65335.0,0.12811973]
[1721210993425,0.153078,65326.0,65324.0,0.068802]
[1721210993625,0.153078,65326.0,65325.0,0.36444678]
[1721210994754,0.153078,65326.0,65325.0,0.36444673]
[1721210995428,0.15302444,65326.0,65325.0,0.37744673]
[1721210995637,0.153076,65327.0,65325.0,0.37744673]
[1721210995781,0.153076,65327.0,65326.0,0.12711988]
[1721210995992,0.153076,65327.0,65326.0,0.21395495]
[1721210996185,0.153076,65327.0,65326.0,0.25982266]
[1721210996390,0.153076,65327.0,65326.0,0.08683507]
[1721210996729,0.153076,65327.0,65326.0,0.25982631]
[1721210997668,0.153076,65327.0,65326.0,0.011]
[1721210998146,0.607028,65327.0,65326.0,0.023]
[1721210998761,0.300876,65327.0,65326.0,0.023]
[1721210999519,0.607028,65327.0,65326.0,0.023]
[1721211000662,0.91318,65327.0,65326.0,0.023]
[1721211005619,0.459228,65327.0,65326.0,0.023]
[1721211007620,0.459228,65327.0,65326.0,0.15012651]
[1721211008559,0.459228,65327.0,65326.0,0.023]
[1721211008760,0.459228,65327.0,65326.0,0.15012666]
[1721211009758,0.91108,65327.0,65326.0,0.15012666]
[1721211010652,0.604928,65327.0,65326.0,0.15012666]
[1721211011830,0.604928,65327.0,65326.0,0.023]
[1721211012030,0.604928,65327.0,65326.0,0.1501268]
[1721211014182,0.1457,65327.0,65326.0,0.1501268]
[1721211014420,0.00084001,65336.0,65327.0,0.05]
[1721211014672,0.00084001,65336.0,65332.0,0.2228]
[1721211014870,0.00084001,65336.0,65333.0,0.1271268]
[1721211015097,0.00084001,65336.0,65334.0,0.20433024]
[1721211015296,0.00084001,65336.0,65335.0,0.12710618]
[1721211016160,0.00084001,65336.0,65335.0,0.18920618]
[1721211016367,0.12888101,65342.0,65335.0,0.18920618]
[1721211016612,0.306067,65346.0,65340.0,0.375845]
[1721211016613,0.075,65346.0,65340.0,0.375845]
[1721211016817,0.075,65346.0,65341.0,0.19783947]
[1721211017044,0.075,65346.0,65342.0,0.12710618]
[1721211017212,0.075,65346.0,65343.0,0.12710618]
[1721211017417,0.075,65346.0,65344.0,0.12710618]
[1721211017661,0.075,65346.0,65345.0,0.18063532]
[1721211018345,0.075,65346.0,65345.0,0.18061756]
[1721211019332,0.0612,65350.0,65345.0,0.18061756]
[1721211019534,0.1612,65350.0,65346.0,0.12708842]
[1721211019731,0.1612,65350.0,65347.0,0.12708842]
[1721211019937,0.1612,65350.0,65348.0,0.14575018]
[1721211020132,0.1612,65350.0,65349.0,0.12708392]
[1721211020383,0.314222,65350.0,65348.0,0.01866176]
[1721211020555,0.314222,65350.0,65345.0,0.05652914]
[1721211020767,0.00084,65352.0,65347.0,0.2228]
[1721211020945,0.00084,65352.0,65350.0,0.153021]
[1721211021143,0.00084,65352.0,65351.0,0.18808355]
[1721211021344,0.00084,65352.0,65351.0,0.061]
[1721211021569,0.00084,65352.0,65351.0,0.29266231]
[1721211021952,0.00084,65352.0,65351.0,0.23166231]
[1721211023411,0.00084,65352.0,65351.0,0.24166231]
[1721211023561,0.00184,65352.0,65351.0,0.25166231]
[1721211024692,0.00184,65352.0,65351.0,0.25166249]
[1721211024895,0.00184,65352.0,65351.0,0.14707192]
[1721211025294,0.00184,65352.0,65351.0,0.02]
[1721211030976,0.00184,65352.0,65351.0,0.22438174]
[1721211031189,0.00184,65352.0,65351.0,1.27837874]
[1721211031391,0.00184,65352.0,65351.0,1.43523654]
[1721211031606,0.00184,65352.0,65351.0,1.58958611]
[1721211032374,0.00184,65352.0,65351.0,1.53958611]
[1721211034465,0.00184,65352.0,65351.0,1.41252831]
[1721211034666,0.00184,65352.0,65351.0,0.91484182]
[1721211035451,0.00184,65352.0,65351.0,0.60880282]
[1721211035880,0.00184,65352.0,65351.0,0.91484182]
[1721211036082,0.00184,65352.0,65351.0,0.60880282]
[1721211036308,0.00184,65352.0,65351.0,0.91484182]
[1721211037780,0.00184,65352.0,65351.0,0.91484733]
[1721211037912,0.00184,65352.0,65351.0,0.60880833]
[1721211038733,0.00184,65352.0,65351.0,0.91484733]
[1721211038935,0.00184,65352.0,65351.0,1.22088633]
[1721211039137,0.00184,65352.0,65351.0,1.49368633]
[1721211040875,0.00184,65352.0,65351.0,1.58588633]
[1721211041074,0.00184,65352.0,65351.0,1.91492533]
[1721211041452,0.00837,65355.0,65354.0,0.765062]
[1721211041655,0.00837,65355.0,65354.0,0.83425582]
[1721211043688,0.00837,65355.0,65354.0,0.84025582]
[1721211043896,0.00837,65355.0,65354.0,0.84625582]
[1721211044282,0.00837,65355.0,65354.0,1.05520431]
[1721211044911,0.00837,65355.0,65354.0,1.04920431]
[1721211045381,0.00837,65355.0,65354.0,1.02482321]
[1721211045507,0.00937,65355.0,65354.0,1.03782321]
[1721211046512,0.00937,65355.0,65354.0,1.05082321]
[1721211047548,0.00937,65355.0,65354.0,1.05082356]
[1721211048960,0.00937,65355.0,65354.0,1.35684856]
[1721211050512,0.00937,65355.0,65354.0,1.83187356]
[1721211050914,0.00836,65363.0,65362.0,0.91077]
[1721211051119,0.00836,65363.0,65362.0,1.79267321]
[1721211051337,0.00836,65363.0,65362.0,2.08391111]
[1721211053245,0.00836,65363.0,65362.0,2.34792664]
[1721211053689,0.00836,65363.0,65362.0,3.04792664]
[1721211054101,0.00836,65363.0,65362.0,2.42435888]
[1721211054305,0.00836,65363.0,65362.0,2.74192586]
[1721211054543,0.00836,65363.0,65362.0,2.65065015]
[1721211055317,0.00836,65363.0,65362.0,2.76474479]
[1721211055735,0.00836,65363.0,65362.0,2.71474479]
[1721211056254,0.00836,65363.0,65362.0,2.40875679]
[1721211056457,0.00836,65363.0,65362.0,2.29466215]
[1721211056458,1e-08,65363.0,65362.0,2.29466215]
[1721211057424,1e-08,65363.0,65362.0,2.29465965]
[1721211057686,1e-08,65363.0,65362.0,2.29465959]
[1721211058428,1e-08,65363.0,65362.0,1.58987759]
[1721211058682,0.23279101,65363.0,65362.0,1.43549585]
[1721211058952,0.53877401,65363.0,65362.0,1.52241468]
[1721211059157,0.91699483,65363.0,65362.0,0.73502628]
[1721211059286,1.22297783,65363.0,65362.0,0.73502628]
[1721211059699,1.22297783,65363.0,65362.0,0.12702628]
[1721211060504,0.1382,65354.0,65348.0,0.47498967]
[1721211060708,0.1382,65354.0,65353.0,0.7712805]
[1721211060907,0.1382,65354.0,65353.0,0.6569206]
[1721211061911,0.1392,65354.0,65353.0,0.6709206]
[1721211062928,0.1392,65354.0,65353.0,0.67091794]
[1721211063453,0.1402,65354.0,65353.0,0.68491794]
[1721211063653,0.1402,65354.0,65353.0,0.77336602]
[1721211064422,0.1402,65354.0,65353.0,0.79174801]
[1721211065871,0.293212,65354.0,65353.0,0.79174801]
[1721211066097,0.293212,65354.0,65353.0,0.45887036]
[1721211066269,0.905262,65354.0,65353.0,0.22376092]
[1721211066476,0.905262,65354.0,65353.0,0.028]
[1721211066812,0.599237,65354.0,65353.0,0.15506889]
[1721211067002,0.599237,65354.0,65353.0,0.35522359]
[1721211067196,0.905262,65354.0,65353.0,0.35522359]
[1721211067424,0.905262,65354.0,65353.0,0.30941846]
[1721211067910,0.905262,65354.0,65353.0,0.15506889]
[1721211068050,1.211287,65354.0,65353.0,0.15506889]
[1721211069472,1.211287,65354.0,65353.0,0.15507524]
[1721211069696,1.211287,65354.0,65353.0,0.028]
[1721211072661,2.07771874,65354.0,65353.0,0.028]
[1721211072864,2.23206831,65354.0,65353.0,0.028]
[1721211073861,2.23106831,65354.0,65353.0,0.014]
[1721211074864,1.377135,65353.0,65352.0,1.500924]
[1721211075084,2.08284674,65353.0,65352.0,1.500924]
[1721211075294,2.08284674,65353.0,65352.0,1.417624]
[1721211075502,2.23719631,65353.0,65352.0,1.417624]
[1721211077352,2.23719631,65353.0,65352.0,1.418624]
[1721211077353,2.24219631,65353.0,65352.0,1.418624]
[1721211077555,2.24919631,65353.0,65352.0,1.419624]
[1721211077755,2.24219631,65353.0,65352.0,1.418624]
[1721211077930,2.23719631,65353.0,65352.0,1.417624]
[1721211078138,1.38350174,65353.0,65352.0,1.419624]
[1721211078346,1.53651674,65353.0,65352.0,1.419624]
[1721211080565,1.63651674,65353.0,65352.0,1.419624]
[1721211081279,1.77961674,65353.0,65352.0,1.419624]
[1721211091823,1.77961674,65353.0,65352.0,1.420548]
[1721211093361,1.319205,65353.0,65352.0,1.420548]
[1721211094530,1.319205,65353.0,65352.0,1.470548]
[1721211095187,0.935275,65353.0,65352.0,1.420548]
[1721211095595,0.935275,65353.0,65352.0,1.470548]
[1721211100560,0.935275,65353.0,65352.0,1.420548]
[1721211101683,0.935275,65353.0,65352.0,1.470548]
[1721211104480,0.95921834,65353.0,65352.0,1.470548]
[1721211105751,0.89401834,65353.0,65352.0,1.470548]
[1721211105952,0.870075,65353.0,65352.0,1.470548]
[1721211106158,0.870075,65353.0,65352.0,1.49775936]
[1721211106357,0.105,65353.0,65352.0,1.49775936]
[1721211106564,0.105,65353.0,65352.0,1.62484972]
[1721211106565,0.158015,65353.0,65352.0,1.62484972]
[1721211106853,0.105,65353.0,65352.0,1.62484972]
[1721211106969,0.258015,65353.0,65352.0,1.62484972]
[1721211107381,0.253015,65353.0,65352.0,1.62284972]
[1721211107791,0.259015,65353.0,65352.0,1.62484972]
[1721211108402,0.259015,65353.0,65352.0,1.49775936]
[1721211111577,0.259015,65353.0,65352.0,1.55855936]
[1721211111938,0.259015,65353.0,65352.0,1.68564705]
[1721211112193,0.259015,65353.0,65352.0,1.68564759]
[1721211112334,0.259015,65353.0,65352.0,1.55855936]
[1721211113618,0.259015,65353.0,65352.0,1.49775936]
[1721211117344,0.106,65353.0,65352.0,1.49775936]
[1721211117858,0.006,65353.0,65352.0,1.62484169]
[1721211118452,0.006,65353.0,65352.0,1.62483913]
[1721211119636,0.006,65353.0,65352.0,1.49775936]
[1721211120481,0.006,65353.0,65352.0,1.62484701]
[1721211120697,0.465045,65353.0,65352.0,1.49775936]
[1721211121722,0.006,65353.0,65352.0,1.64335936]
[1721211121977,0.006,65353.0,65352.0,2.01392385]
[1721211122171,0.006,65353.0,65352.0,3.81831467]
[1721211122344,0.006,65353.0,65352.0,3.91004579]
[1721211122545,0.006,65353.0,65352.0,4.10929894]
[1721211122826,0.006,65353.0,65352.0,3.99463503]
[1721211123549,0.006,65353.0,65352.0,4.1046403]
[1721211123761,0.006,65353.0,65352.0,3.33766285]
[1721211123962,0.006,65353.0,65352.0,4.30060147]
[1721211124165,0.001,65353.0,65352.0,4.34960147]
[1721211124374,0.001,65353.0,65352.0,4.43310147]
[1721211124864,0.4771,65374.0,65373.0,0.05]
[1721211125049,0.4771,65374.0,65373.0,0.06901]
[1721211125611,0.152964,65375.0,65373.0,0.06901]
[1721211125768,0.152964,65375.0,65374.0,0.05]
[1721211125969,0.458891,65375.0,65374.0,0.05]
[1721211126172,0.152964,65375.0,65374.0,0.05]
[1721211126371,0.152964,65375.0,65374.0,0.064831]
[1721211126615,0.459718,65377.0,65376.0,0.05]
[1721211126821,0.559718,65377.0,65376.0,0.05]
[1721211128510,0.559718,65377.0,65376.0,0.051]
[1721211128711,0.564718,65377.0,65376.0,0.052]
[1721211129063,0.564718,65377.0,65376.0,0.1953]
[1721211129064,0.00584,65377.0,65376.0,0.1953]
[1721211129270,0.00584,65377.0,65376.0,0.2163131]
[1721211129617,0.00584,65377.0,65376.0,0.2153131]
[1721211129821,0.00084,65377.0,65376.0,0.2143131]
[1721211131348,0.00184,65377.0,65376.0,0.2143131]
[1721211131768,0.00084,65377.0,65376.0,0.2253131]
[1721211132006,0.00084,65377.0,65376.0,0.2363131]
[1721211136332,0.00084,65377.0,65376.0,0.0930131]
[1721211136670,0.00084,65377.0,65376.0,0.072]
[1721211139155,0.153798,65377.0,65376.0,0.072]
[1721211144069,0.459715,65377.0,65376.0,0.072]
[1721211148401,0.153798,65377.0,65376.0,0.072]
[1721211149354,0.16388478,65377.0,65376.0,0.072]
[1721211149493,0.16388478,65377.0,65376.0,0.08721]
[1721211150253,0.01092678,65377.0,65376.0,0.08721]
[1721211152411,0.14862678,65377.0,65376.0,0.072]
[1721211152626,0.30158478,65377.0,65376.0,0.072]
[1721211153195,0.60750178,65377.0,65376.0,0.072]
[1721211154097,0.60750178,65377.0,65376.0,0.19903962]
[1721211155620,0.60750178,65377.0,65376.0,0.19903771]
[1721211155773,0.60750178,65377.0,65376.0,0.21894148]
[1721211156846,0.46980178,65377.0,65376.0,0.21894148]
[1721211157020,0.16388478,65377.0,65376.0,0.21894148]
[1721211157942,0.01092678,65377.0,65376.0,0.21894148]
[1721211158699,0.01092678,65377.0,65376.0,0.36134148]
[1721211159317,0.01092678,65377.0,65376.0,0.36133669]
[1721211159901,0.01092678,65377.0,65376.0,1.06133669]
[1721211161861,0.01092678,65377.0,65376.0,0.99763669]
[1721211162072,0.01092678,65377.0,65376.0,0.29763669]
[1721211162625,0.01092678,65377.0,65376.0,0.21893669]
[1721211163258,0.01092678,65377.0,65376.0,0.21893643]
[1721211166562,0.01092678,65377.0,65376.0,0.09190377]
[1721211166782,0.01092678,65377.0,65376.0,0.21893643]
[1721211175342,0.01092678,65377.0,65376.0,1.11921406]
[1721211175555,0.01092678,65377.0,65376.0,1.55330698]
[1721211175789,0.01092678,65377.0,65376.0,1.64509877]
[1721211176008,0.01092678,65377.0,65376.0,0.94509877]
[1721211176392,0.01092678,65377.0,65376.0,0.94507246]
[1721211178891,0.01092678,65377.0,65376.0,1.50427246]
[1721211179092,0.07462678,65377.0,65376.0,1.4813006]
[1721211179292,0.01092678,65377.0,65376.0,1.4813006]
[1721211179494,0.01092678,65377.0,65376.0,0.94628551]
[1721211179693,0.01092678,65377.0,65376.0,1.07330613]
[1721211179892,0.01092678,65377.0,65376.0,1.14212665]
[1721211181388,0.01092678,65377.0,65376.0,1.07330613]
[1721211181914,0.01092678,65377.0,65376.0,1.07330609]
[1721211185264,0.01092678,65377.0,65376.0,1.0733097]
[1721211185860,0.01092678,65377.0,65376.0,1.11917936]
[1721211186224,0.01092678,65377.0,65376.0,1.0733097]
[1721211186540,0.15422678,65377.0,65376.0,1.0733097]
[1721211186747,0.15422678,65377.0,65376.0,0.3733097]
[1721211188299,0.15422678,65377.0,65376.0,0.24628551]
[1721211188478,0.15422678,65377.0,65376.0,0.37331395]
[1721211190421,0.07232678,65377.0,65376.0,0.37331395]
[1721211190638,0.01092678,65377.0,65376.0,0.37331395]
[1721211191644,0.01092678,65377.0,65376.0,0.37331235]
[1721211195126,0.01092678,65377.0,65376.0,0.37331655]
[1721211198287,0.01092678,65377.0,65376.0,0.50035005]
[1721211198413,0.01092678,65377.0,65376.0,0.37331778]
[1721211200749,0.46980178,65377.0,65376.0,0.21893604]
[1721211201074,0.77571878,65377.0,65376.0,0.20793604]
[1721211201624,0.77571878,65377.0,65376.0,0.21693981]
[1721211201775,0.77571878,65377.0,65376.0,0.19693981]
[1721211202137,0.77571878,65377.0,65376.0,0.19203604]
[1721211202342,0.77571878,65377.0,65376.0,0.18503604]
[1721211202594,0.77571878,65377.0,65376.0,0.17703604]
[1721211202900,0.77571878,65377.0,65376.0,0.18903604]
[1721211203109,0.91591878,65377.0,65376.0,0.18903604]
[1721211204240,0.91591878,65377.0,65376.0,0.18303604]
[1721211204717,0.91591878,65377.0,65376.0,0.18703694]
[1721211204921,0.91591878,65377.0,65376.0,0.18103694]
[1721211205281,0.91591878,65377.0,65376.0,0.18503694]
[1721211206027,0.91591878,65377.0,65376.0,0.20812996]
[1721211207943,0.61000178,65377.0,65376.0,0.08109302]
[1721211208091,0.53140178,65377.0,65376.0,0.18503694]
[1721211208318,0.46980178,65377.0,65376.0,0.18503694]
[1721211208501,0.01092678,65377.0,65376.0,0.57251868]
[1721211208704,0.01092678,65377.0,65376.0,0.65844484]
[1721211210100,0.01092678,65377.0,65376.0,1.35844484]
[1721211211093,0.01092678,65377.0,65376.0,1.2314079]
[1721211211263,0.01092678,65377.0,65376.0,1.35843443]
[1721211211832,0.01092678,65377.0,65376.0,1.21433443]
[1721211212026,0.01092678,65377.0,65376.0,1.12533443]
[1721211213613,0.91641878,65377.0,65376.0,0.13502653]
[1721211213822,1.22233578,65377.0,65376.0,0.13502653]
[1721211214059,1.8295689,65377.0,65376.0,0.008]
[1721211214376,0.294805,65357.0,65356.0,0.09589736]
[1721211214613,0.906827,65357.0,65356.0,0.12707896]
[1721211214821,0.459024,65356.0,65355.0,0.05]
[1721211215012,0.76504,65356.0,65355.0,0.05]
[1721211215213,0.76505,65355.0,65354.0,0.000924]
[1721211215562,0.76505,65355.0,65354.0,0.050924]
[1721211215771,0.153009,65356.0,65355.0,0.05]
[1721211215965,0.459025,65356.0,65355.0,0.05]
[1721211216277,0.765041,65356.0,65355.0,0.05]
[1721211216705,0.766041,65356.0,65355.0,0.05]
[1721211218190,0.766041,65356.0,65355.0,0.051]
[1721211218355,0.765041,65356.0,65355.0,0.051]
[1721211218660,0.765041,65356.0,65355.0,0.052]
[1721211219099,0.153009,65356.0,65355.0,0.20634957]
[1721211225096,0.459025,65356.0,65355.0,0.20634957]
[1721211226662,0.459025,65356.0,65355.0,0.002]
[1721211226663,1.213457,65356.0,65355.0,0.002]
[1721211228580,1.213457,65356.0,65354.0,0.000924]
[1721211228581,0.91315,65355.0,65354.0,0.000924]
[1721211228716,1.01315,65355.0,65354.0,0.000924]
[1721211229220,1.31917,65355.0,65354.0,0.000924]
[1721211230206,1.32317,65355.0,65354.0,0.001924]
[1721211231108,1.33017,65355.0,65354.0,0.002924]
[1721211231528,1.81357174,65355.0,65354.0,0.002924]
[1721211233295,2.11959174,65355.0,65354.0,0.002924]
[1721211234797,2.11559174,65355.0,65354.0,0.001924]
[1721211234980,1.453235,65353.0,65352.0,1.40428275]
[1721211235186,2.10164674,65353.0,65352.0,1.40428275]
[1721211235873,2.40767674,65353.0,65352.0,1.40428275]
[1721211236219,2.41767674,65353.0,65352.0,1.40628275]
[1721211236459,2.43167674,65353.0,65352.0,1.40628275]
[1721211236659,2.43167674,65353.0,65352.0,1.40528275]
[1721211238527,2.44567674,65353.0,65352.0,1.40628275]
[1721211239281,2.45576205,65353.0,65352.0,1.40628275]
[1721211241853,2.14973205,65353.0,65352.0,1.40628275]
[1721211242231,1.82070205,65353.0,65352.0,1.40628275]
[1721211242443,2.12673205,65353.0,65352.0,1.40628275]
[1721211243890,2.14973205,65353.0,65352.0,1.40628275]
[1721211245891,1.84370205,65353.0,65352.0,1.40628275]
[1721211248238,1.82970205,65353.0,65352.0,1.40528275]
[1721211248627,1.84370205,65353.0,65352.0,1.40628275]
[1721211248818,1.81970205,65353.0,65352.0,1.40528275]
[1721211249168,1.82970205,65353.0,65352.0,1.40628275]
[1721211256417,1.85364835,65353.0,65352.0,1.40628275]
[1721211261250,2.15967835,65353.0,65352.0,1.40628275]
[1721211261422,1.85364835,65353.0,65352.0,1.40628275]
[1721211261924,2.15967835,65353.0,65352.0,1.40628275]
[1721211262123,1.85364835,65353.0,65352.0,1.40628275]
[1721211262528,1.86312564,65353.0,65352.0,1.40628275]
[1721211263315,2.16915564,65353.0,65352.0,1.40628275]
[1721211265663,2.16915692,65353.0,65352.0,1.40628275]
[1721211266076,1.86312692,65353.0,65352.0,1.40628275]
[1721211268876,1.86312882,65353.0,65352.0,1.40628275]
[1721211269056,1.86312914,65353.0,65352.0,1.40628275]
[1721211272152,1.86313049,65353.0,65352.0,1.40628275]
[1721211272532,1.78703049,65353.0,65352.0,1.40628275]
[1721211273143,1.7870313,65353.0,65352.0,1.40628275]
[1721211274223,1.78703222,65353.0,65352.0,1.40628275]
[1721211275443,1.89168482,65353.0,65352.0,1.40628275]
[1721211275639,1.9011689,65353.0,65352.0,1.40628275]
[1721211275904,1.78703243,65353.0,65352.0,1.40628275]
[1721211277466,1.9011689,65353.0,65352.0,1.40628275]
[1721211278929,1.90129857,65353.0,65352.0,1.40628275]
[1721211280676,1.98349857,65353.0,65352.0,1.40628275]
[1721211281075,1.8692337,65353.0,65352.0,1.40628275]
[1721211281326,2.1752637,65353.0,65352.0,1.40628275]
[1721211282191,1.86923583,65353.0,65352.0,1.40628275]
[1721211282810,2.17526583,65353.0,65352.0,1.40628275]
[1721211285451,2.17526578,65353.0,65352.0,1.40628275]
[1721211288621,2.17527041,65353.0,65352.0,1.40628275]
[1721211291227,1.78704041,65353.0,65352.0,1.40628275]
[1721211291471,1.72204041,65353.0,65352.0,1.40628275]
[1721211291908,1.70407418,65353.0,65352.0,1.40628275]
[1721211292041,1.71356851,65353.0,65352.0,1.40628275]
[1721211295055,1.71356851,65353.0,65352.0,1.73641103]
[1721211295056,0.06752594,65353.0,65352.0,1.73641103]
[1721211295251,0.03408531,65353.0,65352.0,1.86350407]
[1721211295678,0.03408531,65353.0,65352.0,2.17090281]
[1721211295850,0.03408531,65353.0,65352.0,2.42612327]
[1721211296049,0.03408531,65353.0,65352.0,2.56894026]
[1721211296201,0.03408531,65353.0,65352.0,2.4489804]
[1721211296400,0.02008531,65353.0,65352.0,2.49382935]
[1721211296909,0.03208531,65353.0,65352.0,2.06373476]
[1721211297260,0.01808531,65353.0,65352.0,2.01588581]
[1721211297462,0.01908531,65353.0,65352.0,2.02988581]
[1721211297629,0.01908531,65353.0,65352.0,2.04288581]
[1721211297630,0.02008531,65353.0,65352.0,2.04288581]
[1721211298082,0.02008531,65353.0,65352.0,2.04286224]
[1721211298481,0.02008531,65353.0,65352.0,2.74286224]
[1721211301388,0.02008531,65353.0,65352.0,3.04889724]
[1721211301590,0.02008531,65353.0,65352.0,3.20191424]
[1721211302009,0.02008531,65353.0,65352.0,2.67286224]
[1721211303760,0.02008531,65353.0,65352.0,2.54579277]
[1721211303933,0.02008531,65353.0,65352.0,2.67285478]
[1721211307132,0.02008531,65353.0,65352.0,2.67285925]
[1721211308481,0.02008531,65353.0,65352.0,2.67285928]
[1721211311203,0.02008531,65353.0,65352.0,1.97285928]
[1721211311603,0.0197381,65353.0,65352.0,1.97285928]
[1721211313473,0.0197381,65353.0,65352.0,1.9728613]
[1721211313872,0.0197381,65353.0,65352.0,1.84579277]
[1721211315197,0.0197381,65353.0,65352.0,1.97286232]
[1721211316461,0.1727531,65353.0,65352.0,1.97286232]
[1721211316670,0.0197381,65353.0,65352.0,1.97286232]
[1721211317208,0.1727531,65353.0,65352.0,1.91166232]
[1721211317437,0.0197381,65353.0,65352.0,1.91166232]
[1721211317635,0.1727531,65353.0,65352.0,1.91166232]
[1721211317755,0.0197381,65353.0,65352.0,1.91166232]
[1721211319818,0.0197381,65353.0,65352.0,1.78459277]
[1721211320017,0.0197381,65353.0,65352.0,1.91166269]
[1721211320418,0.01851983,65353.0,65352.0,1.91166269]
[1721211320653,0.01851983,65353.0,65352.0,1.97386269]
[1721211323179,0.01851983,65353.0,65352.0,1.97386229]
[1721211327231,0.01851983,65353.0,65352.0,2.67386229]
[1721211329163,0.01851983,65353.0,65352.0,2.61166229]
[1721211329489,0.02802189,65353.0,65352.0,2.48459277]
[1721211329696,0.02802189,65353.0,65352.0,2.32898055]
[1721211329893,0.02802189,65353.0,65352.0,2.18835227]
[1721211329894,0.62796689,65353.0,65352.0,2.18835227]
[1721211330099,0.62796689,65353.0,65352.0,1.48835227]
[1721211330100,0.93399689,65353.0,65352.0,1.48835227]
[1721211330303,1.24002689,65353.0,65352.0,1.48835227]
[1721211330450,1.34002689,65353.0,65352.0,1.48835227]
[1721211330652,1.34002689,65353.0,65352.0,1.36128275]
[1721211330653,1.51834937,65353.0,65352.0,1.36128275]
[1721211330829,1.53234937,65353.0,65352.0,1.34728275]
[1721211331191,1.83837937,65353.0,65352.0,1.35128275]
[1721211331390,1.35496763,65353.0,65352.0,1.35128275]
[1721211331927,1.35496763,65353.0,65352.0,1.33828275]
[1721211331928,1.35396763,65353.0,65352.0,1.33828275]
[1721211332080,1.35396763,65353.0,65352.0,1.34228275]
[1721211332274,1.33002689,65353.0,65352.0,1.34228275]
[1721211332473,1.33002689,65353.0,65352.0,1.33828275]
[1721211332676,1.33002689,65353.0,65352.0,1.33428275]
[1721211332886,1.33002689,65353.0,65352.0,1.33628275]
[1721211332887,1.85638259,65353.0,65352.0,1.33628275]
[1721211333045,1.84738259,65353.0,65352.0,1.33528275]
[1721211333451,1.86688846,65353.0,65352.0,1.33628275]
[1721211334584,1.85738259,65353.0,65352.0,1.33628275]
[1721211334758,1.84738259,65353.0,65352.0,1.33528275]
[1721211335179,1.85638259,65353.0,65352.0,1.33528275]
[1721211335383,2.16241259,65353.0,65352.0,1.33528275]
[1721211335591,2.15241259,65353.0,65352.0,1.33428275]
[1721211335799,2.15741259,65353.0,65352.0,1.33528275]
[1721211335994,2.17141259,65353.0,65352.0,1.33528275]
[1721211336611,1.86538259,65353.0,65352.0,1.33528275]
[1721211338465,2.17141259,65353.0,65352.0,1.33528275]
[1721211339017,1.86538259,65353.0,65352.0,1.33528275]
[1721211339218,2.17141259,65353.0,65352.0,1.33528275]
[1721211340492,2.17141259,65353.0,65352.0,1.18538275]
[1721211340675,2.17141259,65353.0,65352.0,0.10804131]
[1721211340896,1.683423,65343.0,65342.0,0.000924]
[1721211341071,2.08260474,65343.0,65342.0,0.000924]
[1721211341299,2.38868174,65343.0,65342.0,0.000924]
[1721211342217,2.4126257,65343.0,65342.0,0.000924]
[1721211342965,2.4406257,65343.0,65342.0,0.000924]
[1721211347160,2.41668174,65343.0,65342.0,0.000924]
[1721211351055,2.91668174,65343.0,65342.0,1e-06]
[1721211351252,0.153104,65315.0,65314.0,0.0831]
[1721211351570,0.253104,65315.0,65314.0,0.0831]
[1721211351815,0.86552,65315.0,65314.0,0.1331]
[1721211352418,0.86652,65315.0,65314.0,0.1331]